bitfinex/quotes_SOLUSD_20251224
["timestamp","ask_amount","ask_price","bid_price","bid_amount"]
[1766600375595,10.0112986,122.13,122.08,60.38166923]
[1766600375767,10.0112986,122.13,122.08,37.25066637]
[1766600376390,10.0112986,122.13,122.09,0.46]
[1766600376723,0.71,122.12,122.09,0.46]
[1766600380084,0.71,122.12,122.08,62.66486118]
[1766600380392,0.71,122.12,122.08,60.84166922]
[1766600380691,0.71,122.12,122.09,0.46]
[1766600387282,1.82319196,122.12,122.08,15.4]
[1766600387485,0.72,122.11,122.08,15.4]
[1766600387694,0.72,122.11,122.08,14.94]
[1766600389585,0.72,122.11,122.07,8.19175718]
[1766600389787,0.72,122.11,122.07,8.65175718]
[1766600390099,0.72,122.11,122.06,14.96]
[1766600390272,0.72,122.09,122.05,8.65288294]
[1766600390682,0.72,122.09,122.05,10.4760749]
[1766600391902,0.72,122.13,122.08,0.46]
[1766600392090,0.72,122.13,122.09,2.28319196]
[1766600392275,0.72,122.13,122.08,0.46]
[1766600392471,0.72,122.13,122.09,0.46]
[1766600392692,0.72,122.13,122.07,10.43767296]
[1766600392693,0.72,122.13,122.1,2.28319196]
[1766600393297,0.72,122.15,122.12,1.82319196]
[1766600394204,0.72,122.15,122.12,2.28319196]
[1766600394391,0.72,122.15,122.11,17.24319196]
[1766600395000,0.72,122.15,122.11,25.43214735]
[1766600395711,0.72,122.15,122.12,0.46]
[1766600395893,0.72,122.15,122.11,25.43214735]
[1766600396095,0.72,122.15,122.12,0.46]
[1766600397202,0.72,122.15,122.11,25.43214735]
[1766600397511,0.72,122.15,122.12,10.0118311]
[1766600397810,0.72,122.15,122.12,10.4718311]
[1766600399255,0.72,122.15,122.12,1.82319196]
[1766600399532,0.72,122.15,122.11,25.43223912]
[1766600400321,0.72,122.15,122.12,1.82319196]
[1766600400529,0.72,122.15,122.12,2.28319196]
[1766600400925,0.72,122.15,122.12,1.82319196]
[1766600403062,0.72,122.15,122.13,1.82319196]
[1766600403221,0.72,122.18,122.13,15.42]
[1766600403423,0.72,122.18,122.14,1.82319196]
[1766600404622,0.72,122.18,122.14,10.47044692]
[1766600405345,0.72,122.18,122.13,25.43087329]
[1766600405554,8.1846481,122.18,122.14,1.82319196]
[1766600405723,0.72,122.17,122.14,1.82319196]
[1766600407136,0.72,122.17,122.14,10.47046258]
[1766600414287,10.43767296,122.2,122.14,10.01046258]
[1766600414567,0.68,122.19,122.16,2.28319196]
[1766600416933,0.68,122.19,122.16,0.46]
[1766600420981,0.68,122.19,122.16,10.46917641]
[1766600421179,0.68,122.21,122.17,0.46]
[1766600421792,0.68,122.21,122.16,10.46917641]
[1766600422781,0.68,122.21,122.17,0.46]
[1766600423991,0.68,122.21,122.17,8.64502518]
[1766600428268,0.68,122.2,122.17,0.46]
[1766600428668,0.68,122.2,122.17,8.6452201]
[1766600429794,0.68,122.2,122.17,11.49167645]
[1766600429971,0.78,122.23,122.19,0.46]
[1766600430284,0.68,122.2,122.17,0.46]
[1766600430464,0.68,122.2,122.16,11.49213756]
[1766600430866,0.68,122.2,122.16,8.64568121]
[1766600431184,0.68,122.19,122.15,86.08631574]
[1766600431387,0.68,122.19,122.16,8.6459835]
[1766600435293,0.68,122.19,122.16,11.49243985]
[1766600458017,0.68,122.19,122.16,8.6459835]
[1766600459526,0.68,122.19,122.16,11.49243985]
[1766600460422,0.68,122.19,122.16,8.6459835]
[1766600460611,0.68,122.19,122.16,11.49243985]
[1766600461703,0.68,122.19,122.16,8.1859835]
[1766600461904,0.68,122.19,122.16,8.6459835]
[1766600462920,0.68,122.19,122.17,0.46]
[1766600464324,2.84645635,122.22,122.17,0.46]
[1766600464629,0.71,122.21,122.17,0.46]
[1766600468727,0.71,122.21,122.17,8.64525203]
[1766600470528,0.71,122.21,122.17,0.46]
[1766600470849,0.68,122.2,122.17,0.46]
[1766600471340,0.68,122.2,122.16,8.18585069]
[1766600471631,0.68,122.2,122.16,8.64585069]
[1766600472044,0.68,122.2,122.16,8.18585069]
[1766600472212,0.68,122.2,122.16,8.64585069]
[1766600473437,0.68,122.2,122.17,8.18531278]
[1766600475029,0.68,122.22,122.19,0.46]
[1766600480341,0.68,122.22,122.18,0.46]
[1766600481741,0.68,122.22,122.18,8.64462255]
[1766600482546,0.68,122.22,122.18,0.46]
[1766600488657,1.82158226,122.22,122.18,0.46]
[1766600488861,15.04,122.23,122.16,8.6456725]
[1766600488862,0.68,122.2,122.16,8.6456725]
[1766600489039,0.68,122.2,122.17,0.46]
[1766600489648,0.68,122.2,122.18,0.5]
[1766600489942,0.68,122.2,122.17,0.46]
[1766600491649,0.68,122.2,122.17,10.00638388]
[1766600491857,0.68,122.2,122.18,0.46]
[1766600492551,0.68,122.2,122.17,0.46]
[1766600499565,0.68,122.2,122.18,0.5]
[1766600501344,0.68,122.2,122.16,8.18565612]
[1766600501543,0.68,122.2,122.16,8.83565612]
[1766600501944,0.68,122.2,122.16,8.18565612]
[1766600502166,0.68,122.2,122.17,0.67]
[1766600502645,0.68,122.2,122.16,8.85565612]
[1766600505072,0.68,122.2,122.16,10.67723838]
[1766600505949,0.63838516,122.2,122.16,10.67723838]
[1766600506254,0.63838516,122.2,122.16,8.85565612]
[1766600506455,0.63838516,122.2,122.16,10.67723838]
[1766600506864,0.63838516,122.2,122.16,10.00723838]
[1766600507068,0.63838516,122.2,122.17,0.67]
[1766600514574,0.95996742,122.22,122.17,0.67]
[1766600516275,8.28158812,122.23,122.17,0.67]
[1766600516574,0.69,122.21,122.17,0.67]
[1766600520579,0.69,122.22,122.18,0.67]
[1766600520773,0.69,122.22,122.2,0.67]
[1766600521486,0.79,122.23,122.2,2.49158226]
[1766600521653,0.1,122.23,122.22,2.49158226]
[1766600522277,0.1,122.23,122.22,0.67]
[1766600522653,0.1,122.23,122.2,1.82158226]
[1766600522976,0.79,122.23,122.21,0.67]
[1766600525672,0.1,122.23,122.21,0.67]
[1766600527689,0.77,122.23,122.21,0.67]
[1766600529184,0.1,122.24,122.22,1.82158226]
[1766600529397,0.1,122.25,122.23,2.50158226]
[1766600529563,0.1,122.25,122.23,0.68]
[1766600529763,0.77,122.25,122.23,0.68]
[1766600530163,0.77,122.25,122.21,2.50158226]
[1766600530364,0.77,122.25,122.22,2.50158226]
[1766600532096,0.77,122.25,122.22,0.68]
[1766600535781,0.77,122.25,122.22,2.50158226]
[1766600538808,0.77,122.25,122.22,0.68]
[1766600540682,0.77,122.25,122.22,2.50158226]
[1766600541811,0.2,122.26,122.24,2.50158226]
[1766600544087,0.2,122.26,122.24,0.68]
[1766600544288,0.2,122.26,122.24,2.50158226]
[1766600548010,0.2,122.26,122.24,3.52331304]
[1766600553914,0.2,122.26,122.24,11.70372022]
[1766600554113,0.2,122.26,122.24,3.52331304]
[1766600554613,0.67,122.25,122.23,11.70441056]
[1766600554998,0.87,122.26,122.23,11.70441056]
[1766600557014,0.87,122.26,122.24,0.68]
[1766600560419,0.1,122.27,122.26,0.7]
[1766600560620,0.1,122.27,122.25,3.54331304]
[1766600560912,0.76,122.27,122.25,0.7]
[1766600563097,0.76,122.27,122.25,3.54331304]
[1766600563422,0.76,122.27,122.25,0.7]
[1766600566931,0.76,122.27,122.24,8.18033348]
[1766600567227,0.76,122.27,122.24,11.73364652]
[1766600568929,0.1,122.27,122.25,3.55331304]
[1766600569315,0.79,122.27,122.25,0.71]
[1766600571938,0.1,122.27,122.25,0.71]
[1766600573536,0.1,122.27,122.25,3.55331304]
[1766600575334,0.79,122.27,122.25,0.71]
[1766600575630,0.79,122.27,122.24,8.18033348]
[1766600575933,0.79,122.27,122.24,11.73364652]
[1766600579738,0.1,122.27,122.26,3.55331304]
[1766600580119,0.1,122.3,122.27,0.71]
[1766600580340,0.1,122.3,122.29,3.55331304]
[1766600581016,0.1,122.32,122.3,0.71]
[1766600581215,0.1,122.32,122.31,0.71]
[1766600582022,0.1,122.32,122.3,3.55331304]
[1766600583454,0.1,122.32,122.3,0.71]
[1766600583627,0.79,122.32,122.29,13.990986]
[1766600583828,0.79,122.32,122.29,10.43767296]
[1766600584056,0.79,122.32,122.29,13.990986]
[1766600584252,0.79,122.32,122.3,0.71]
[1766600584447,0.1,122.32,122.3,0.71]
[1766600595546,0.79,122.32,122.3,0.71]
[1766600596543,0.79,122.32,122.3,3.55331304]
[1766600601874,0.79,122.32,122.29,19.29495035]
[1766600602054,0.79,122.32,122.3,2.84331304]
[1766600602683,0.1,122.32,122.3,2.84331304]
[1766600602850,0.1,122.32,122.3,3.52331304]
[1766600603876,0.79,122.32,122.3,3.52331304]
[1766600604086,0.79,122.32,122.3,0.68]
[1766600604258,0.79,122.32,122.3,3.52331304]
[1766600605575,0.79,122.32,122.3,0.68]
[1766600605884,0.79,122.32,122.3,3.52331304]
[1766600606580,0.79,122.32,122.3,0.68]
[1766600606781,0.79,122.32,122.3,3.52331304]
[1766600607978,0.79,122.32,122.3,2.49791925]
[1766600609771,0.79,122.32,122.3,0.68]
[1766600609976,0.79,122.32,122.3,2.49791925]
[1766600610681,0.1,122.32,122.3,2.49791925]
[1766600610982,0.79,122.32,122.3,2.49791925]
[1766600612200,0.1,122.32,122.3,2.49791925]
[1766600612767,0.79,122.32,122.3,2.49791925]
[1766600613072,0.79,122.32,122.3,0.68]
[1766600613274,0.79,122.32,122.3,2.49791925]
[1766600618376,0.79,122.32,122.29,21.1528696]
[1766600618574,0.79,122.32,122.29,19.33495035]
[1766600618892,0.79,122.32,122.29,21.1528696]
[1766600619670,0.79,122.32,122.29,19.33495035]
[1766600620071,0.79,122.32,122.29,21.1528696]
[1766600620803,0.79,122.32,122.3,1.81791925]
[1766600621902,0.1,122.33,122.31,2.53791925]
[1766600622110,0.2,122.37,122.35,10.43767296]
[1766600622283,0.78,122.39,122.36,1.81791925]
[1766600622482,0.78,122.39,122.37,2.53791925]
[1766600623629,0.78,122.39,122.37,1.81791925]
[1766600624698,0.78,122.39,122.36,10.71013903]
[1766600625909,0.78,122.39,122.36,0.72]
[1766600626118,0.78,122.39,122.36,2.53791925]
[1766600630399,0.78,122.39,122.37,0.72]
[1766600632513,0.78,122.39,122.37,2.53791925]
[1766600634419,0.1,122.39,122.36,9.99042491]
[1766600636020,0.1,122.39,122.35,18.6106195]
[1766600636235,0.1,122.39,122.35,20.42853875]
[1766600636600,0.1,122.39,122.35,10.43767296]
[1766600640230,0.1,122.39,122.35,8.17327249]
[1766600641527,0.1,122.39,122.36,1.81791925]
[1766600643403,0.1,122.39,122.37,1.81791925]
[1766600643602,0.1,122.39,122.36,8.17197924]
[1766600643829,0.1,122.39,122.37,1.81791925]
[1766600644721,0.1,122.39,122.36,9.98989849]
[1766600647139,0.1,122.39,122.36,8.17197924]
[1766600647437,0.1,122.39,122.36,9.98989849]
[1766600647648,0.1,122.39,122.37,1.81791925]
[1766600647814,0.2,122.4,122.37,1.81791925]
[1766600648124,0.2,122.4,122.38,1.81791925]
[1766600648634,0.2,122.4,122.38,9.9890225]
[1766600649219,0.2,122.4,122.37,9.98957854]
[1766600649935,0.2,122.4,122.38,9.98917583]
[1766600650116,0.2,122.4,122.38,8.17125658]
[1766600650321,0.2,122.4,122.37,9.98954409]
[1766600651040,0.2,122.4,122.36,9.99021871]
[1766600651238,0.2,122.4,122.35,20.42859934]
[1766600651541,2.01791925,122.4,122.35,20.42859934]
[1766600651919,0.2,122.4,122.35,20.42859934]
[1766600652739,0.2,122.4,122.35,18.61068009]
[1766600653337,0.2,122.4,122.35,20.42859934]
[1766600654577,1.81791925,122.39,122.34,18.61133743]
[1766600654832,1.81791925,122.39,122.34,20.42925668]
[1766600655035,10.18818375,122.4,122.34,20.42925668]
[1766600655427,8.3702645,122.4,122.34,10.43767296]
[1766600655635,1.81791925,122.38,122.33,8.17427414]
[1766600655840,1.81791925,122.38,122.33,9.99219339]
[1766600656027,8.3702645,122.4,122.31,8.17550591]
[1766600656028,1.81791925,122.36,122.31,8.17550591]
[1766600656429,1.81791925,122.36,122.3,40.72971561]
[1766600656614,8.17227404,122.37,122.3,40.72971561]
[1766600656819,1.81791925,122.35,122.3,40.72971561]
[1766600657449,1.81791925,122.34,122.29,8.17708189]
[1766600657620,1.81791925,122.34,122.29,9.99500114]
[1766600658531,1.81791925,122.34,122.29,8.17708189]
[1766600659935,26.72926355,122.37,122.29,8.17708189]
[1766600660139,1.81791925,122.34,122.29,9.99500114]
[1766600661354,1.81791925,122.34,122.29,8.17708189]
[1766600661526,1.81791925,122.35,122.29,9.99500114]
[1766600662451,0.69,122.34,122.3,0.66]
[1766600665735,1.81791925,122.36,122.32,0.66]
[1766600665931,0.69,122.35,122.32,0.66]
[1766600683652,3.53000309,122.35,122.32,0.66]
[1766600684975,0.7,122.34,122.3,8.17629595]
[1766600685183,0.7,122.34,122.3,0.71]
[1766600685390,3.54000309,122.34,122.3,0.71]
[1766600689478,0.7,122.33,122.3,0.71]
[1766600694495,2.84000309,122.34,122.29,11.01725294]
[1766600700778,11.01412993,122.34,122.28,21.4554658]
[1766600700986,11.01412993,122.34,122.29,2.84000309]
[1766600701282,2.84000309,122.34,122.29,2.84000309]
[1766600701660,11.01417824,122.34,122.28,18.61546271]
[1766600701890,11.01417824,122.34,122.29,2.84000309]
[1766600702082,2.84000309,122.34,122.29,2.84000309]
[1766600703998,23.09362972,122.35,122.31,2.84000309]
[1766600704496,8.17287738,122.36,122.32,2.84000309]
[1766600704677,14.92,122.35,122.32,2.84000309]
[1766600707196,103.9,122.37,122.3,8.17659873]
[1766600707197,103.9,122.37,122.34,2.84000309]
[1766600707974,0.2,122.4,122.36,2.84000309]
[1766600708306,0.2,122.4,122.38,2.84000309]
[1766600709579,0.2,122.4,122.39,2.84000309]
[1766600714292,0.2,122.4,122.38,2.84000309]
[1766600717910,0.2,122.4,122.35,8.17263517]
[1766600718097,0.2,122.4,122.38,2.84000309]
[1766600720600,0.2,122.41,122.39,2.84000309]
[1766600720799,25.35767296,122.43,122.4,2.84000309]
[1766600722321,14.92,122.43,122.4,2.84000309]
[1766600723325,23.08840465,122.43,122.39,2.84000309]
[1766600724821,14.92,122.43,122.39,2.84000309]
[1766600728614,23.08809301,122.43,122.38,2.84000309]
[1766600729520,25.9280961,122.43,122.38,2.84000309]
[1766600732016,24.90371862,122.43,122.38,1.81562561]
[1766600734130,1.81562561,122.39,122.31,8.17568]
[1766600734302,16.73562561,122.38,122.33,1.81562561]
[1766600734502,1.81562561,122.41,122.36,1.81562561]
[1766600734830,14.92,122.4,122.36,1.81562561]
[1766600735423,23.08996959,122.4,122.36,1.81562561]
[1766600735801,14.92,122.41,122.36,10.43767296]
[1766600736014,14.92,122.41,122.38,1.81562561]
[1766600736503,14.92,122.41,122.37,1.81562561]
[1766600737630,14.92,122.41,122.38,1.81562561]
[1766600741743,14.92,122.41,122.36,18.61022364]
[1766600741950,14.92,122.41,122.37,1.81562561]
[1766600743227,23.08936415,122.41,122.37,1.81562561]
[1766600744948,14.92,122.41,122.36,18.61025128]
[1766600745251,14.92,122.41,122.39,1.81562561]
[1766600745941,103.9,122.43,122.4,1.81562561]
[1766600746126,0.1,122.45,122.38,0.81712698]
[1766600746441,0.1,122.45,122.42,1.81562561]
[1766600751134,0.1,122.45,122.39,8.17060217]
[1766600751340,0.1,122.45,122.42,1.81562561]
[1766600751936,0.1,122.45,122.39,8.17060217]
[1766600752248,0.1,122.45,122.41,1.81562561]
[1766600756469,0.72,122.44,122.41,1.81562561]
[1766600756769,0.72,122.44,122.41,2.51562561]
[1766600757862,0.72,122.44,122.41,0.7]
[1766600758069,0.72,122.44,122.41,2.51562561]
[1766600758561,0.72,122.44,122.41,0.7]
[1766600758767,0.72,122.44,122.41,2.51562561]
[1766600759866,0.72,122.44,122.41,0.7]
[1766600760071,0.72,122.44,122.41,2.51562561]
[1766600761772,0.72,122.44,122.41,1.81562561]
[1766600763272,0.72,122.44,122.41,2.51562561]
[1766600763979,0.1,122.45,122.43,0.7]
[1766600764158,119.54,122.47,122.44,2.51562561]
[1766600764349,0.72,122.46,122.44,2.51562561]
[1766600765275,0.72,122.46,122.44,1.81562561]
[1766600765873,118.82,122.47,122.45,1.81562561]
[1766600766062,118.82,122.47,122.45,2.51562561]
[1766600766378,104.62,122.47,122.45,0.7]
[1766600768379,0.72,122.47,122.45,0.7]
[1766600770751,0.72,122.47,122.43,0.7]
[1766600770958,0.72,122.47,122.44,2.51562561]
[1766600786196,0.72,122.47,122.45,2.51562561]
[1766600788506,0.1,122.48,122.46,1.81562561]
[1766600788713,0.1,122.48,122.46,2.51562561]
[1766600788924,0.1,122.48,122.46,0.7]
[1766600788925,0.76,122.48,122.46,0.7]
[1766600789124,0.1,122.48,122.46,2.51562561]
[1766600791026,0.76,122.48,122.46,0.7]
[1766600798527,2.83345123,122.46,122.4,42.17685012]
[1766600798731,2.83345123,122.46,122.41,2.83345123]
[1766600798939,2.83345123,122.47,122.42,2.83345123]
[1766600799525,23.18475837,122.48,122.43,2.83345123]
[1766600799526,0.1,122.48,122.43,2.83345123]
[1766600800636,0.1,122.48,122.43,11.00096194]
[1766600802020,0.1,122.48,122.41,45.78028354]
[1766600802021,0.1,122.48,122.46,2.83345123]
[1766600802222,0.1,122.48,122.47,2.83345123]
[1766600803015,0.1,122.48,122.46,2.83345123]
[1766600803816,0.1,122.48,122.45,2.83345123]
[1766600813056,0.1,122.48,122.46,2.83345123]
[1766600821366,0.1,122.48,122.47,2.83345123]
[1766600821732,0.1,122.48,122.46,2.83345123]
[1766600827665,0.1,122.48,122.45,8.16644123]
[1766600827862,0.1,122.48,122.46,2.83345123]
[1766600832482,0.79,122.48,122.46,2.83345123]
[1766600833066,0.79,122.48,122.45,8.16644123]
[1766600833969,0.79,122.48,122.44,25.99767296]
[1766600834184,0.79,122.48,122.44,28.83112419]
[1766600834693,0.79,122.48,122.44,25.99767296]
[1766600834895,0.79,122.48,122.44,28.83112419]
[1766600835460,0.79,122.48,122.44,36.99837778]
[1766600842787,0.79,122.48,122.44,34.16492655]
[1766600842995,0.79,122.48,122.44,36.99837778]
[1766600845789,0.79,122.48,122.45,0.64]
[1766600847591,0.79,122.48,122.45,3.47345123]
[1766600848491,0.79,122.48,122.45,0.64]
[1766600848791,0.79,122.48,122.44,22.07837778]
[1766600849802,0.79,122.48,122.45,0.64]
[1766600850897,0.79,122.48,122.44,13.27112419]
[1766600851090,0.79,122.48,122.44,13.91112419]
[1766600854300,0.69,122.47,122.44,13.91112419]
[1766600854997,0.79,122.48,122.45,2.83345123]
[1766600855501,0.79,122.48,122.44,13.91112419]
[1766600855997,0.79,122.48,122.44,12.891423]
[1766600856404,0.79,122.48,122.44,11.07767296]
[1766600856596,0.79,122.48,122.44,12.891423]
[1766600857102,0.79,122.48,122.44,18.60457396]
[1766600857318,0.79,122.48,122.45,2.45375004]
[1766600858507,0.79,122.48,122.45,0.64]
[1766600860911,0.1,122.5,122.47,1.81375004]
[1766600861292,0.1,122.5,122.45,8.80634422]
[1766600861609,0.1,122.52,122.49,1.81375004]
[1766600862808,0.1,122.52,122.48,1.81375004]
[1766600863111,0.69,122.51,122.48,1.81375004]
[1766600863407,0.69,122.51,122.47,24.89866292]
[1766600863616,0.69,122.5,122.46,8.16570622]
[1766600863811,0.69,122.5,122.46,9.97945626]
[1766600864516,1.81375004,122.51,122.46,1.81375004]
[1766600864712,1.81375004,122.51,122.45,23.06638313]
[1766600864713,1.81375004,122.5,122.45,23.06638313]
[1766600864895,1.81375004,122.49,122.44,18.60470987]
[1766600865092,1.81375004,122.49,122.44,20.41845991]
[1766600865707,1.81375004,122.49,122.44,18.60470987]
[1766600865915,1.81375004,122.49,122.44,20.41845991]
[1766600866214,1.81375004,122.5,122.44,20.41845991]
[1766600866714,9.977042,122.5,122.44,20.41845991]
[1766600866897,1.81375004,122.49,122.44,20.41845991]
[1766600867412,1.81375004,122.49,122.44,12.251423]
[1766600868117,8.16329196,122.5,122.44,10.43767296]
[1766600868118,1.81375004,122.48,122.44,10.43767296]
[1766600868304,1.81375004,122.47,122.43,10.43767296]
[1766600876518,0.69,122.46,122.44,0.71]
[1766600881026,2.50375004,122.48,122.44,0.71]
[1766600881607,0.69,122.47,122.44,0.71]
[1766600891245,1.81375004,122.48,122.44,0.71]
[1766600891441,2.48375004,122.48,122.44,0.71]
[1766600891748,0.67,122.46,122.43,0.67]
[1766600892125,0.67,122.47,122.43,0.67]
[1766600897652,2.48375004,122.47,122.43,0.67]
[1766600898255,1.81375004,122.47,122.43,0.67]
[1766600898548,0.67,122.46,122.43,0.67]
[1766600899162,0.67,122.46,122.4,0.67]
[1766600899163,0.67,122.45,122.4,0.67]
[1766600899361,0.67,122.45,122.41,0.67]
[1766600899542,16.33014438,122.47,122.41,1.81375004]
[1766600899749,2.48375004,122.46,122.42,0.67]
[1766600899948,0.67,122.45,122.42,0.67]
[1766600900976,1.81375004,122.46,122.4,0.67]
[1766600900977,1.81375004,122.44,122.4,0.67]
[1766600901272,0.67,122.43,122.4,0.67]
[1766600901571,0.67,122.42,122.4,0.67]
[1766600901969,0.67,122.42,122.4,0.17]
[1766600902466,0.67,122.43,122.4,0.17]
[1766600904147,0.67,122.43,122.39,1.48375004]
[1766600904371,0.67,122.42,122.38,16.73375004]
[1766600905169,0.67,122.42,122.38,1.81375004]
[1766600905575,0.67,122.42,122.37,52.0134248]
[1766600906379,0.67,122.42,122.38,0.66]
[1766600906873,0.67,122.42,122.38,0.16]
[1766600907560,2.48375004,122.42,122.38,0.16]
[1766600908479,2.48375004,122.42,122.37,42.02810593]
[1766600908480,1.81375004,122.42,122.37,42.02810593]
[1766600908789,1.81375004,122.4,122.37,31.59043297]
[1766600909772,23.08821,122.43,122.35,30.87015002]
[1766600909980,1.81375004,122.42,122.37,1.81375004]
[1766600910969,1.81375004,122.42,122.36,8.17231698]
[1766600911172,1.81375004,122.42,122.37,1.81375004]
[1766600913081,9.98239487,122.42,122.37,1.81375004]
[1766600915964,11.00589731,122.42,122.37,2.83725248]
[1766600919589,11.00589731,122.42,122.36,8.17231698]
[1766600919775,11.00589731,122.42,122.37,2.83725248]
[1766600921496,2.83725248,122.41,122.35,18.61076985]
[1766600921669,11.00654938,122.41,122.35,18.61076985]
[1766600921870,2.83725248,122.4,122.35,21.44802233]
[1766600922766,2.83725248,122.39,122.35,10.43767296]
[1766600923078,2.83725248,122.39,122.34,2.83725248]
[1766600923672,2.83725248,122.39,122.34,11.01107767]
[1766600925271,2.83725248,122.42,122.37,2.83725248]
[1766600925472,14.92,122.42,122.37,2.83725248]
[1766600925688,42.28408892,122.42,122.37,2.83725248]
[1766600926412,2.83725248,122.41,122.36,2.83725248]
[1766600927180,2.83725248,122.4,122.34,2.83725248]
[1766600927480,43.51033874,122.42,122.36,2.83725248]
[1766600927481,27.3660943,122.41,122.36,2.83725248]
[1766600927779,24.52884182,122.41,122.36,2.83725248]
[1766600927990,27.3660943,122.41,122.36,2.83725248]
[1766600928698,25.92609147,122.42,122.35,8.17291957]
[1766600928906,50.45292791,122.42,122.36,2.83725248]
[1766600929606,50.45292791,122.42,122.35,11.01017205]
[1766600929607,2.83725248,122.41,122.35,11.01017205]
[1766600929903,2.83725248,122.41,122.35,2.83725248]
[1766600930100,2.83725248,122.4,122.35,2.83725248]
[1766600931282,2.83725248,122.39,122.33,33.53202744]
[1766600931478,2.83725248,122.38,122.33,36.36927992]
[1766600934504,2.83725248,122.38,122.33,21.44927992]
[1766600935286,25.92799641,122.39,122.34,2.83725248]
[1766600941506,14.92,122.39,122.35,2.83725248]
[1766600941905,118.82,122.41,122.36,2.83725248]
[1766600942308,126.98934759,122.41,122.36,2.83725248]
[1766600942509,129.82660007,122.41,122.36,2.83725248]
[1766600943398,129.82660007,122.41,122.35,8.17311098]
[1766600943597,129.82660007,122.41,122.36,2.83725248]
[1766600946098,129.82660007,122.41,122.35,8.17311098]
[1766600946305,129.82660007,122.41,122.34,28.60879515]
[1766600946603,129.82660007,122.41,122.35,2.83725248]
[1766600947826,2.83725248,122.4,122.35,11.01033871]
[1766600956137,126.98934759,122.41,122.36,2.83725248]
[1766600956313,129.82660007,122.41,122.36,2.83725248]
[1766600958233,129.82660007,122.41,122.35,11.01033871]
[1766600970141,126.98934759,122.41,122.35,11.01033871]
[1766600970343,126.98934759,122.41,122.36,2.83725248]
[1766600971341,126.98934759,122.41,122.35,8.17308623]
[1766600971547,126.98934759,122.41,122.36,2.83725248]
[1766600972543,129.82660007,122.41,122.36,2.83725248]
[1766600975448,126.98934759,122.41,122.36,2.83725248]
[1766600975742,129.82660007,122.41,122.36,2.83725248]
[1766600977953,128.80547718,122.41,122.36,1.81612959]
[1766600980555,128.80547718,122.41,122.35,8.17308623]
[1766600980852,128.80547718,122.41,122.36,1.81612959]
[1766600983958,126.98934759,122.41,122.36,1.81612959]
[1766600985265,128.80547718,122.41,122.36,1.81612959]
[1766600986457,128.80547718,122.41,122.34,23.09362559]
[1766600986649,128.80547718,122.41,122.35,1.81612959]
[1766600986849,1.81612959,122.39,122.34,14.92]
[1766600987748,1.81612959,122.39,122.34,16.73612959]
[1766600989265,16.73612959,122.39,122.34,1.81612959]
[1766600992173,16.73612959,122.39,122.34,9.99004305]
[1766601000065,41.26697713,122.39,122.34,9.99004305]
[1766601000588,39.45084754,122.39,122.34,9.99004305]
[1766601000885,1.81612959,122.38,122.33,20.4282038]
[1766601001068,1.81612959,122.38,122.33,20.42835381]
[1766601001265,24.53285357,122.39,122.34,8.17392706]
[1766601001465,24.53285357,122.39,122.35,1.81612959]
[1766601001772,9.98660025,122.4,122.35,1.81612959]
[1766601001773,10.43767296,122.4,122.35,1.81612959]
[1766601002787,10.43767296,122.4,122.35,9.98924895]
[1766601005968,12.25380255,122.4,122.35,9.98924895]
[1766601006286,20.42390464,122.4,122.35,1.81612959]
[1766601006663,20.42390464,122.4,122.34,8.17373843]
[1766601006873,20.42390464,122.4,122.35,1.81612959]
[1766601008592,18.60777505,122.4,122.35,1.81612959]
[1766601008895,12.25380255,122.4,122.35,9.98932567]
[1766601009088,20.42379427,122.4,122.35,1.81612959]